bitfinex/quotes_BTCUSD_20220207
["timestamp","ask_amount","ask_price","bid_price","bid_amount"]
[1644254772068,0.02115367,43872.0,43871.0,0.02]
[1644254772571,0.34571174,43872.0,43871.0,0.02]
[1644254772769,0.49571174,43872.0,43871.0,0.02]
[1644254772970,0.73204895,43872.0,43871.0,0.02]
[1644254773169,0.78204895,43872.0,43871.0,0.02]
[1644254773771,0.52455807,43872.0,43871.0,0.02]
[1644254774373,0.42455807,43872.0,43871.0,0.02]
[1644254774572,0.32455807,43872.0,43871.0,0.02]
[1644254774821,0.56313647,43872.0,43871.0,0.02]
[1644254775025,0.32455807,43872.0,43871.0,0.02]
[1644254775221,0.008,43873.0,43871.0,0.02]
[1644254776221,0.324993,43872.0,43871.0,0.02]
[1644254776823,0.54614667,43872.0,43871.0,0.02]
[1644254777624,0.34614667,43872.0,43871.0,0.02]
[1644254777821,0.02115367,43872.0,43871.0,0.02]
[1644254779071,0.1,43875.0,43871.0,0.02]
[1644254779275,0.107025,43875.0,43871.0,0.02]
[1644254779471,0.324993,43874.0,43871.0,0.02]
[1644254779871,0.382017,43874.0,43871.0,0.02]
[1644254780276,0.324993,43873.0,43871.0,0.02]
[1644254780471,0.374993,43873.0,43871.0,0.02]
[1644254780672,0.210775,43872.0,43871.0,0.02]
[1644254781473,0.260775,43872.0,43871.0,0.02]
[1644254781772,0.23749368,43872.0,43871.0,0.02]
[1644254784824,0.057025,43870.0,43866.0,0.05]
[1644254785025,0.107025,43870.0,43869.0,0.00073896]
[1644254786079,0.05,43870.0,43866.0,0.05]
[1644254786279,0.05,43870.0,43867.0,0.324993]
[1644254786480,0.41596007,43870.0,43865.0,0.42]
[1644254787180,0.46596007,43870.0,43865.0,0.42]
[1644254787583,0.057032,43869.0,43865.0,0.42073901]
[1644254787781,0.41596007,43870.0,43868.0,0.00155119]
[1644254788579,0.439041,43869.0,43868.0,0.00155119]
[1644254788979,0.4812725,43869.0,43868.0,0.00155119]
[1644254789180,0.324993,43869.0,43868.0,0.00155119]
[1644254789383,0.0025802,43869.0,43868.0,0.00155119]
[1644254791425,0.0025802,43869.0,43868.0,0.05155119]
[1644254791825,0.0025802,43869.0,43868.0,0.37654419]
[1644254793033,0.0025802,43869.0,43868.0,0.00155119]
[1644254793483,0.8,43868.0,43866.0,0.00073931]
[1644254793685,0.324993,43867.0,43866.0,0.00073931]
[1644254793884,0.474993,43867.0,43866.0,0.00073931]
[1644254794085,0.6812725,43867.0,43866.0,0.00073931]
[1644254794286,0.00087177,43864.0,43857.0,0.020951]
[1644254794484,0.79432894,43863.0,43858.0,0.0002231]
[1644254794683,0.05,43862.0,43858.0,0.0002231]
[1644254794883,0.374993,43862.0,43858.0,0.0002231]
[1644254795284,0.63249516,43862.0,43858.0,0.0002231]
[1644254795483,0.69105876,43862.0,43858.0,0.0002231]
[1644254795985,0.69105876,43862.0,43859.0,0.00054471]
[1644254796185,0.69105876,43862.0,43860.0,0.0002231]
[1644254797084,0.69105876,43862.0,43859.0,0.00054471]
[1644254797328,0.69105876,43862.0,43860.0,0.0002231]
[1644254797329,1.18209206,43861.0,43860.0,0.0002231]
[1644254797526,1.63343713,43861.0,43859.0,0.00054471]
[1644254797727,0.374993,43860.0,43859.0,0.00054471]
[1644254797925,0.6770725,43860.0,43859.0,0.00054471]
[1644254798127,0.6770725,43860.0,43853.0,0.0002231]
[1644254798331,0.27744448,43853.0,43852.0,0.0002231]
[1644254798527,0.1902016,43852.0,43851.0,0.0202231]
[1644254798726,0.1902016,43852.0,43851.0,0.02]
[1644254799329,0.19216654,43852.0,43851.0,0.02]
[1644254800731,0.24216654,43852.0,43851.0,0.02]
[1644254800978,0.19216654,43852.0,43851.0,0.02]
[1644254801577,0.00196494,43852.0,43851.0,0.02]
[1644254802176,0.00196494,43852.0,43851.0,0.58771865]
[1644254803777,0.00314579,43852.0,43851.0,0.344993]
[1644254804180,0.00314579,43852.0,43851.0,0.02]
[1644254804824,0.00314579,43852.0,43850.0,0.00024204]
[1644254805227,0.90611705,43851.0,43849.0,0.02096294]
[1644254805426,0.210775,43850.0,43849.0,0.0202231]
[1644254805626,0.210775,43850.0,43849.0,0.02096294]
[1644254806428,0.21273994,43850.0,43849.0,0.02096294]
[1644254806627,0.21273994,43850.0,43849.0,0.0202231]
[1644254808473,0.03043859,43848.0,43847.0,0.00073986]
[1644254809076,0.03043859,43848.0,43845.0,0.32573289]
[1644254809274,0.63951863,43851.0,43845.0,0.32573289]
[1644254809275,0.15104082,43851.0,43845.0,0.00073989]
[1644254809474,0.00150764,43851.0,43845.0,0.00073989]
[1644254809678,0.05,43849.0,43845.0,0.00073989]
[1644254810075,0.05,43849.0,43843.0,0.05]
[1644254810478,0.05855864,43851.0,43845.0,0.00073989]
[1644254811490,0.057053,43850.0,43846.0,0.00073988]
[1644254811677,0.05855864,43851.0,43846.0,0.00073988]
[1644254812530,0.05855864,43851.0,43843.0,0.05]
[1644254812727,0.05855864,43851.0,43846.0,0.00073987]
[1644254812929,0.00150764,43851.0,43846.0,0.00073987]
[1644254813132,0.00150764,43851.0,43847.0,0.324993]
[1644254813528,0.00117952,43851.0,43847.0,0.324993]
[1644254813728,0.00137147,43848.0,43847.0,0.324993]
[1644254813929,0.00137147,43848.0,43847.0,0.61852707]
[1644254814235,0.00032812,43852.0,43849.0,0.324993]
[1644254814434,0.00032812,43852.0,43850.0,0.0458]
[1644254814631,0.00032812,43853.0,43851.0,0.324993]
[1644254814829,0.00032812,43853.0,43852.0,0.0458]
[1644254815031,0.00032812,43853.0,43852.0,0.370793]
[1644254815531,0.00032812,43854.0,43852.0,0.370793]
[1644254815730,0.01746649,43860.0,43852.0,0.370793]
[1644254815983,0.00065624,43856.0,43851.0,0.324993]
[1644254816381,0.00065624,43856.0,43854.0,0.00073978]
[1644254817283,0.00065624,43856.0,43847.0,0.04875957]
[1644254817483,0.00065624,43856.0,43853.0,0.00073979]
[1644254818587,0.00065624,43857.0,43849.0,0.05]
[1644254818785,0.00065624,43857.0,43852.0,0.0007398]
[1644254819831,0.00065624,43857.0,43852.0,0.32023678]
[1644254820031,0.00065624,43857.0,43852.0,0.32097658]
[1644254820431,0.36175609,43854.0,43852.0,0.32097658]
[1644254820631,0.36175609,43854.0,43852.0,0.3207328]
[1644254821032,0.00065624,43856.0,43852.0,0.319993]
[1644254821232,0.00065624,43856.0,43852.0,0.32023678]
[1644254821631,0.00065624,43857.0,43852.0,0.32023678]
[1644254822230,0.00065624,43857.0,43854.0,0.23414193]
[1644254822631,0.00065624,43857.0,43855.0,0.32507]
[1644254823481,0.00065624,43857.0,43855.0,0.42507]
[1644254823681,0.00065624,43857.0,43855.0,0.52507]
[1644254824082,0.00065624,43857.0,43856.0,0.0458]
[1644254825483,0.00065624,43857.0,43856.0,0.37087]
[1644254825684,0.00065624,43857.0,43856.0,0.66242172]
[1644254826386,0.00065624,43857.0,43856.0,0.43735172]
[1644254827086,0.00065624,43857.0,43856.0,0.76242172]
[1644254827332,0.00065624,43857.0,43856.0,0.47087]
[1644254827527,0.00052596,43857.0,43856.0,0.1458]
[1644254827733,0.00052596,43857.0,43856.0,0.0458]
[1644254828033,0.00052596,43857.0,43855.0,0.32531378]
[1644254828229,0.00052596,43857.0,43855.0,0.32507]
[1644254828429,0.00052596,43857.0,43854.0,0.32580977]
[1644254828829,0.36273188,43857.0,43854.0,0.00073977]
[1644254829432,0.36273188,43857.0,43852.0,0.00024378]
[1644254829629,0.36273188,43857.0,43851.0,0.26524911]
[1644254829630,0.36273188,43857.0,43853.0,0.00073979]
[1644254830632,0.36273188,43857.0,43852.0,0.00024378]
[1644254830995,0.36273188,43857.0,43853.0,0.00073979]
[1644254830996,0.37507,43854.0,43853.0,0.00073979]
[1644254831194,0.72087,43854.0,43853.0,0.00073979]
[1644254831392,0.215686,43851.0,43841.0,0.02]
[1644254831591,0.37507,43842.0,43841.0,0.02]
[1644254831789,0.67603762,43842.0,43841.0,0.02]
[1644254831991,0.67603762,43842.0,43834.0,0.05]
[1644254831992,0.057066,43841.0,43834.0,0.05]
[1644254832591,0.215686,43838.0,43834.0,0.05]
[1644254832792,0.057064,43840.0,43834.0,0.05]
[1644254833192,0.05,43837.0,43834.0,0.05073715]
[1644254833592,0.37507,43837.0,43834.0,0.05073715]
[1644254833793,0.107065,43837.0,43834.0,0.05073715]
[1644254833992,0.05,43840.0,43834.0,0.05073715]
[1644254834192,0.05,43837.0,43834.0,0.05]
[1644254834592,0.15078652,43842.0,43834.0,0.05]
[1644254834836,0.32507,43841.0,43840.0,0.19179192]
[1644254835039,0.10078652,43842.0,43840.0,0.19179192]
[1644254835233,0.32507,43841.0,43834.0,0.05]
[1644254835533,0.15078652,43842.0,43834.0,0.05]
[1644254835534,0.10078652,43842.0,43834.0,0.05]
[1644254835733,0.00078652,43842.0,43839.0,0.00073709]
[1644254836737,0.05,43840.0,43834.0,0.05]
[1644254836934,0.00078652,43842.0,43838.0,0.00073709]
[1644254837135,0.32507,43841.0,43838.0,0.00073709]
[1644254837333,0.00078652,43842.0,43838.0,0.00073709]
[1644254837734,0.215686,43841.0,43838.0,0.00073709]
[1644254837934,0.05,43839.0,43834.0,0.26500519]
[1644254838134,0.05,43839.0,43838.0,0.0007371]
[1644254838335,0.02109285,43842.0,43838.0,0.0007371]
[1644254838590,0.02109285,43842.0,43839.0,0.32507]
[1644254838787,0.01889463,43844.0,43841.0,0.05]
[1644254838986,0.01889463,43844.0,43843.0,0.05]
[1644254839187,0.05,43855.0,43843.0,0.42087]
[1644254839385,0.05,43855.0,43845.0,0.58975018]
[1644254839386,0.00066095,43848.0,43845.0,0.58975018]
[1644254839586,0.00066095,43848.0,43847.0,0.32507]
[1644254840187,0.05,43854.0,43847.0,0.32507]
[1644254840384,0.05,43854.0,43846.0,0.20592917]
[1644254840586,0.00066103,43850.0,43846.0,0.32507]
[1644254840786,0.05066103,43850.0,43844.0,0.05073703]
[1644254841385,0.05,43850.0,43844.0,0.05]
[1644254841585,0.05,43850.0,43844.0,0.05073703]
[1644254841787,0.00066103,43849.0,43844.0,0.05073703]
[1644254842630,0.0001,43850.0,43844.0,0.05]
[1644254842831,0.00066103,43849.0,43844.0,0.05073703]
[1644254843129,0.05,43847.0,43844.0,0.05073703]
[1644254843333,0.05,43847.0,43844.0,0.00073703]
[1644254843530,0.10706,43847.0,43844.0,0.00073703]
[1644254843729,0.37507,43846.0,43844.0,0.00073703]
[1644254843934,0.31803961,43845.0,43843.0,0.01889463]
[1644254844131,0.47844415,43844.0,43843.0,0.01963166]
[1644254844329,0.62844415,43844.0,43843.0,0.01963166]
[1644254844530,0.52204627,43844.0,43843.0,0.01963166]
[1644254844730,0.57204627,43844.0,43843.0,0.00073703]
[1644254844930,0.415686,43844.0,43843.0,0.00073703]
[1644254845130,0.41342127,43844.0,43835.0,0.07107364]
[1644254845332,0.32507,43842.0,43841.0,0.00073706]
[1644254845533,0.37507,43842.0,43841.0,0.00073706]
[1644254845730,0.432131,43842.0,43841.0,0.00073706]
[1644254846182,0.482131,43842.0,43841.0,0.00073706]
[1644254846382,0.157061,43842.0,43835.0,0.07107364]
[1644254846583,0.32507,43840.0,43839.0,0.00073708]
[1644254846784,0.37507,43840.0,43839.0,0.00073708]
[1644254846983,0.45,43839.0,43827.0,0.10734554]
[1644254847184,0.10707,43836.0,43831.0,0.05]
[1644254847387,0.01917644,43833.0,43831.0,0.05]
[1644254847584,0.01917644,43833.0,43831.0,0.1]
[1644254848786,0.01917644,43833.0,43831.0,0.05]
[1644254849086,0.05,43832.0,43831.0,0.05]
[1644254849486,0.01917644,43833.0,43831.0,0.05]
[1644254849739,0.31461126,43832.0,43831.0,0.04]
[1644254850130,0.63968126,43832.0,43831.0,0.04]
[1644254850329,0.32507,43832.0,43831.0,0.04]
[1644254850735,0.17553671,43833.0,43831.0,0.04]
[1644254851030,0.37507,43832.0,43831.0,0.035]
[1644254851229,0.05,43832.0,43831.0,0.035]
[1644254852029,0.01667644,43833.0,43831.0,0.035]
[1644254852630,0.37507,43832.0,43831.0,0.035]
[1644254853579,0.05,43832.0,43831.0,0.035]
[1644254855283,0.15636027,43835.0,43831.0,0.035]
[1644254855483,0.05,43835.0,43831.0,0.035]
[1644254856082,0.00066974,43835.0,43834.0,0.05]
[1644254856286,0.00066974,43835.0,43834.0,0.37507]
[1644254856685,0.00066974,43835.0,43834.0,0.87087]
[1644254856885,0.00066974,43835.0,43834.0,1.34087]
[1644254857086,0.02067134,43842.0,43834.0,1.34087]
[1644254857347,0.02067134,43842.0,43841.0,0.05]
[1644254857547,0.02067134,43842.0,43841.0,0.42087]
[1644254857746,0.02067134,43842.0,43841.0,0.47087]
[1644254858646,0.05,43849.0,43841.0,0.47087]
[1644254858647,0.00066974,43844.0,43841.0,0.47087]
[1644254858848,0.00066974,43844.0,43842.0,0.32507]
[1644254859250,0.05,43843.0,43840.0,0.05]
[1644254860446,0.32507,43842.0,43840.0,0.05]
[1644254860645,0.05,43843.0,43840.0,0.05]
[1644254861682,0.04814544,43843.0,43840.0,0.05]
[1644254861884,0.2019005,43845.0,43840.0,0.05]
[1644254862084,0.32573974,43844.0,43840.0,0.05]
[1644254862283,0.00066974,43844.0,43840.0,0.05]
[1644254862583,0.04814544,43842.0,43840.0,0.05]
[1644254862782,0.00066974,43844.0,43840.0,0.05]
[1644254863183,0.34056679,43847.0,43840.0,0.05]
[1644254863385,0.00066974,43844.0,43840.0,0.05209783]
[1644254863588,0.00066974,43844.0,43841.0,0.05]
[1644254863985,0.00066974,43844.0,43841.0,0.00024327]
[1644254864185,0.00066974,43844.0,43840.0,0.05]
[1644254864385,0.53445897,43847.0,43840.0,0.05]
[1644254864584,0.00066974,43845.0,43840.0,0.05024327]
[1644254865029,0.04881518,43845.0,43840.0,0.05024327]
[1644254865232,0.00066974,43845.0,43840.0,0.10024327]
[1644254865431,0.53445897,43847.0,43840.0,0.1]
[1644254865432,0.04814544,43843.0,43840.0,0.1]
[1644254865631,0.53445897,43847.0,43840.0,0.1]
[1644254865830,0.00066974,43845.0,43840.0,0.1]
[1644254866030,0.00066974,43845.0,43843.0,0.05]
[1644254866234,0.00066974,43845.0,43844.0,0.00185456]
[1644254866531,0.00066974,43845.0,43844.0,0.32692456]
[1644254866730,0.0001,43850.0,43844.0,0.32692456]
[1644254866931,0.0001,43850.0,43847.0,0.19389935]
[1644254867137,0.0001,43850.0,43849.0,0.05]
[1644254867333,0.0001,43850.0,43849.0,0.05185456]
[1644254867532,0.0001,43850.0,43849.0,0.00185456]
[1644254868034,0.0001,43850.0,43849.0,0.05185456]
[1644254869485,0.00066974,43852.0,43849.0,0.05185456]
[1644254869687,0.00066974,43852.0,43850.0,0.05]
[1644254870285,0.04814544,43855.0,43850.0,0.05]
[1644254870488,0.00066974,43853.0,43850.0,0.1]
[1644254871588,0.36472653,43859.0,43852.0,0.00185456]
[1644254871888,0.32507,43858.0,43856.0,0.05185456]
[1644254872088,0.00123052,43860.0,43856.0,0.05185456]
[1644254872532,0.34662473,43860.0,43856.0,0.05185456]
[1644254872932,0.34729447,43860.0,43856.0,0.05185456]
[1644254873936,0.34662473,43860.0,43839.0,0.11406963]
[1644254874135,0.34729447,43860.0,43843.0,0.0458]
[1644254874334,0.02084035,43848.0,43843.0,0.0458]
[1644254874534,0.02084035,43848.0,43844.0,0.32507]
[1644254874832,0.28989934,43859.0,43845.0,0.0458]
[1644254875033,0.22839942,43855.0,43846.0,0.23833161]
[1644254875335,0.34662473,43860.0,43847.0,0.33328337]
[1644254875733,0.34162473,43860.0,43847.0,0.33328337]
[1644254875986,0.17494586,43861.0,43847.0,0.33328337]
[1644254876288,0.01859292,43861.0,43857.0,0.22888903]
[1644254878090,0.01859292,43861.0,43854.0,0.0458]
[1644254878694,0.05,43863.0,43854.0,0.0458]
[1644254878894,0.00066868,43860.0,43854.0,0.0458]
[1644254879098,0.22524473,43857.0,43854.0,0.0458]
[1644254879294,0.00066868,43860.0,43854.0,0.0458]
[1644254879934,0.29548509,43861.0,43854.0,0.0458]
[1644254880134,0.00066868,43859.0,43854.0,0.0408]
[1644254881136,0.05,43860.0,43854.0,0.0408]
[1644254881336,0.00066868,43859.0,43854.0,0.0408]
[1644254882137,0.05066868,43859.0,43854.0,0.0408]
[1644254882338,0.05,43859.0,43854.0,0.0408]
[1644254882538,0.00066868,43859.0,43854.0,0.0408]
[1644254882842,0.00066868,43859.0,43841.0,0.214064]
[1644254882843,0.05,43857.0,43841.0,0.214064]
[1644254883045,0.05,43842.0,43834.0,0.3878]
[1644254883240,0.1,43842.0,43838.0,0.00024436]
[1644254883483,0.0458,43850.0,43832.0,0.32531436]
[1644254883484,0.107058,43843.0,43832.0,0.32531436]
[1644254883684,0.107058,43843.0,43835.0,0.26449068]
[1644254883884,0.00066868,43842.0,43838.0,0.23493161]
[1644254884885,0.114114,43848.0,43838.0,0.23493161]
[1644254885086,0.56340094,43849.0,43838.0,0.23493161]
[1644254885284,0.00066868,43842.0,43836.0,0.00024436]
[1644254885484,0.00066868,43842.0,43832.0,0.32531436]
[1644254885684,0.00066868,43842.0,43833.0,0.19399745]
[1644254885884,0.01805603,43846.0,43835.0,0.05704]
[1644254886084,0.01805603,43846.0,43836.0,0.32507]
[1644254886284,0.00066868,43839.0,43836.0,0.32507]
[1644254886484,0.00066868,43839.0,43837.0,0.4621023]
[1644254886684,0.01805603,43846.0,43844.0,0.24394682]
[1644254886885,0.01804699,43847.0,43844.0,0.24394682]
[1644254888033,0.01804699,43847.0,43845.0,0.22748868]
[1644254888836,0.01992817,43851.0,43845.0,0.22748868]
[1644254890036,0.01992817,43851.0,43846.0,0.32507]
[1644254890238,0.01992817,43851.0,43847.0,0.05]
[1644254890436,0.01992817,43851.0,43848.0,0.37087]
[1644254890840,0.01990553,43855.0,43853.0,0.25196222]
[1644254891681,0.01990553,43855.0,43852.0,0.26003694]
[1644254892080,0.01990553,43855.0,43848.0,0.10283]
[1644254892285,0.01990553,43855.0,43848.0,0.0408]
[1644254892681,0.000667,43856.0,43848.0,0.0408]
[1644254893281,0.05,43858.0,43848.0,0.0408]
[1644254893285,0.28371003,43857.0,43848.0,0.0408]
[1644254893482,0.000667,43854.0,43848.0,0.0408]
[1644254894085,0.000667,43854.0,43849.0,0.32507]
[1644254894286,0.15635294,43858.0,43849.0,0.32507]
[1644254894483,0.01957288,43859.0,43850.0,0.102826]
[1644254894741,0.000667,43853.0,43851.0,0.32507]
[1644254894937,0.000667,43853.0,43852.0,0.0458]
[1644254895135,0.000667,43853.0,43852.0,0.37087]
[1644254895535,0.01932435,43858.0,43855.0,0.18900281]
[1644254896737,0.01903635,43862.0,43855.0,0.18900281]
[1644254896935,0.000667,43859.0,43855.0,0.18900281]
[1644254897135,0.00800568,43862.0,43855.0,0.18900281]
[1644254898782,0.05703,43864.0,43855.0,0.18900281]
[1644254899281,0.05,43865.0,43855.0,0.18900281]
[1644254899481,0.00066534,43862.0,43855.0,0.18900281]
[1644254900284,0.22104512,43866.0,43856.0,0.0458]
[1644254900285,0.17739806,43866.0,43856.0,0.0458]
[1644254900486,0.02104512,43866.0,43856.0,0.0458]
[1644254900687,0.00066533,43861.0,43857.0,0.32507]
[1644254900983,0.01837035,43866.0,43858.0,0.8458]
[1644254901184,0.01837035,43866.0,43865.0,0.23194814]
[1644254902089,0.15935294,43876.0,43868.0,0.32507]
[1644254902339,0.003,43876.0,43870.0,0.32507]
[1644254902538,0.003,43876.0,43871.0,0.0458]
[1644254902741,0.003,43876.0,43872.0,0.5155258]
[1644254902935,0.003,43876.0,43873.0,0.27429388]
[1644254903136,0.003,43876.0,43874.0,0.32507]
[1644254903437,0.003,43876.0,43875.0,0.0458]
[1644254903636,0.003,43876.0,43875.0,0.37087]
[1644254904036,0.003,43876.0,43875.0,0.42087]
[1644254906102,0.003,43876.0,43875.0,0.37087]
[1644254906303,0.053,43876.0,43873.0,0.22849388]
[1644254906506,0.05,43875.0,43873.0,0.22849388]
[1644254906703,0.05,43875.0,43867.0,0.01850911]
[1644254906704,0.05,43874.0,43867.0,0.03686687]
[1644254906903,0.05,43874.0,43863.0,0.0458]
[1644254907103,0.22062236,43873.0,43863.0,0.26597576]
[1644254907302,0.37874633,43875.0,43863.0,0.26597576]
[1644254907501,0.05,43873.0,43863.0,0.26597576]
[1644254907702,0.05,43873.0,43867.0,0.18911492]
[1644254907903,0.00066367,43870.0,43867.0,0.18911492]
[1644254908703,0.05,43868.0,43867.0,0.18911492]
[1644254909406,0.00066367,43871.0,43867.0,0.18911492]
[1644254909608,0.05,43868.0,43862.0,0.22274479]
[1644254909837,0.00066367,43871.0,43863.0,0.32507]
[1644254910037,0.05,43868.0,43863.0,0.37507]
[1644254910240,0.00066367,43867.0,43863.0,0.37507]
[1644254910638,0.00066367,43867.0,43864.0,0.2608521]
[1644254910837,0.00066367,43867.0,43865.0,0.32507]
[1644254911240,0.04566367,43869.0,43865.0,0.32507]
[1644254911438,0.00066367,43868.0,43864.0,0.2608521]
[1644254911845,0.00066367,43868.0,43865.0,0.32507]
[1644254912238,0.00066367,43868.0,43865.0,0.32007]
[1644254912438,0.04566367,43870.0,43865.0,0.32007]
[1644254912638,0.00066201,43869.0,43864.0,0.2608521]
[1644254913239,0.00066201,43869.0,43861.0,0.00073521]
[1644254913486,0.04566367,43870.0,43860.0,0.02845]
[1644254913783,0.09566367,43870.0,43861.0,0.0007352]
[1644254913982,0.00066198,43869.0,43861.0,0.0007352]
[1644254914184,0.34402548,43867.0,43861.0,0.0007352]
[1644254914388,0.04566367,43863.0,43861.0,0.0007352]
[1644254914588,0.05,43862.0,43861.0,0.0007352]
[1644254914786,0.05,43862.0,43856.0,0.0183577]
[1644254914787,0.85,43862.0,43856.0,0.0183577]
[1644254914986,0.09566367,43857.0,43856.0,0.0183577]
[1644254915188,0.36221567,43857.0,43856.0,0.0183577]
[1644254915386,1.25260908,43857.0,43856.0,5.77e-05]
[1644254915785,1.27090908,43857.0,43856.0,5.77e-05]
[1644254916185,0.98876407,43857.0,43856.0,5.77e-05]
[1644254916784,1.03876407,43857.0,43856.0,5.77e-05]
[1644254917247,1.36156142,43857.0,43856.0,5.77e-05]
[1644254917643,1.36128709,43857.0,43856.0,5.77e-05]
[1644254917840,0.057064,43851.0,43836.0,0.00024436]
[1644254918036,0.325013,43846.0,43839.0,0.00024436]
[1644254918240,0.220752,43844.0,43834.0,0.03433633]
[1644254918438,0.04566367,43836.0,43834.0,0.03433633]
[1644254918637,0.04566367,43836.0,43834.0,0.00458069]
[1644254918838,0.04566367,43836.0,43834.0,0.00433633]
[1644254919238,0.325013,43835.0,43834.0,0.00433633]
[1644254919640,0.325013,43835.0,43833.0,0.00024436]
[1644254919838,0.325013,43835.0,43832.0,0.03433633]
[1644254919839,0.52423137,43835.0,43832.0,0.03053304]
[1644254920039,0.3484789,43834.0,43832.0,0.03053304]
[1644254920441,0.325013,43833.0,43832.0,0.03053304]
[1644254920842,0.325013,43833.0,43832.0,0.03]
[1644254921094,0.60590843,43833.0,43832.0,0.03]
[1644254921897,0.6556341,43833.0,43832.0,0.03]
[1644254922697,0.37473867,43833.0,43832.0,0.03]
[1644254923195,0.65513734,43833.0,43832.0,0.03]
[1644254923400,0.65513734,43833.0,43824.0,0.4369]
[1644254923401,0.65513734,43833.0,43830.0,0.00073436]
[1644254923597,0.220752,43831.0,43830.0,0.00073436]
[1644254923996,0.04566367,43831.0,43830.0,0.00073436]
[1644254924196,0.24463966,43836.0,43830.0,0.00073436]
[1644254924395,0.24463966,43836.0,43827.0,0.00024436]
[1644254924396,0.425013,43835.0,43827.0,0.00024436]
[1644254924595,0.1,43835.0,43828.0,0.00073439]
[1644254924835,0.1,43835.0,43828.0,0.20450345]
[1644254925035,0.1,43835.0,43828.0,0.00073439]
[1644254925435,0.05707061,43833.0,43828.0,0.00073439]
[1644254925637,0.24463966,43836.0,43827.0,0.00024436]
[1644254925835,0.24463966,43836.0,43826.0,0.05024436]
[1644254926040,0.24463966,43836.0,43826.0,0.05]
[1644254926041,0.42577811,43827.0,43826.0,0.05]
[1644254926236,0.90079111,43827.0,43826.0,0.05]
[1644254926438,1.24350544,43827.0,43822.0,0.00024436]
[1644254926637,0.220752,43826.0,43814.0,0.00024436]
[1644254926837,0.33720479,43825.0,43814.0,0.00024436]
[1644254927038,0.325013,43824.0,43814.0,0.00024436]
[1644254927236,0.325013,43824.0,43814.0,0.20440938]
[1644254927237,0.06757881,43823.0,43814.0,0.20440938]
[1644254927436,0.220752,43822.0,43815.0,0.00024436]
[1644254927637,0.220752,43822.0,43814.0,0.00024436]
[1644254927838,0.21991639,43822.0,43814.0,0.00024436]
[1644254928237,0.21991639,43822.0,43819.0,0.00073392]
[1644254928492,0.50440554,43822.0,43820.0,0.00024436]
[1644254928894,0.60440554,43822.0,43821.0,0.02]
[1644254929293,0.65440554,43822.0,43821.0,0.02]
[1644254929494,0.75020554,43822.0,43821.0,0.02]
[1644254929794,0.46571639,43822.0,43821.0,0.02]
[1644254930098,0.36571639,43822.0,43821.0,0.02]
[1644254930298,0.26571639,43822.0,43821.0,0.02]
[1644254930993,0.324979,43822.0,43821.0,0.02]
[1644254931196,0.3991531,43822.0,43821.0,0.02]
[1644254931393,0.4991531,43822.0,43821.0,0.02]
[1644254931592,0.324979,43822.0,43821.0,0.02]
[1644254932262,0.8,43821.0,43813.0,0.05293613]
[1644254932554,0.370779,43820.0,43814.0,0.00024481]
[1644254932751,0.28228792,43819.0,43813.0,0.00028094]
[1644254932951,0.28228792,43819.0,43812.0,0.03832883]
[1644254932952,0.36519599,43817.0,43812.0,0.02042871]
[1644254933152,0.370779,43816.0,43812.0,0.02042871]
[1644254933352,0.470779,43816.0,43812.0,0.02042871]
[1644254934951,0.470779,43816.0,43812.0,0.00024481]
[1644254935152,0.324979,43815.0,43812.0,0.05]
[1644254935352,0.12028977,43821.0,43813.0,0.325231]
[1644254935353,0.02028977,43821.0,43813.0,0.325231]
[1644254935554,0.02028977,43821.0,43820.0,0.05]
[1644254936192,0.02028977,43821.0,43820.0,0.62309874]
[1644254936593,0.02028977,43821.0,43820.0,0.67309874]
[1644254936795,0.02028977,43821.0,43820.0,0.66809874]
[1644254936993,0.00067999,43823.0,43820.0,0.62309874]
[1644254937195,0.00067999,43823.0,43820.0,0.29786774]
[1644254937698,0.07426119,43825.0,43820.0,0.29786774]
[1644254937893,0.00067999,43824.0,43820.0,0.29786774]
[1644254938896,0.26446485,43829.0,43820.0,0.29786774]
[1644254939095,0.00067999,43824.0,43820.0,0.29786774]
[1644254939495,0.00067999,43824.0,43820.0,0.24786774]
[1644254939750,0.06799682,43824.0,43823.0,0.05]
[1644254939944,0.06799682,43824.0,43820.0,0.29786774]
[1644254939945,0.00067999,43824.0,43820.0,0.29786774]
[1644254940145,0.28418902,43831.0,43820.0,0.58894814]
[1644254940343,0.28418902,43831.0,43820.0,0.29811255]
[1644254940546,0.00067999,43826.0,43820.0,0.29811255]
[1644254940744,0.00067999,43826.0,43820.0,0.24811255]
[1644254940945,0.07905621,43823.0,43820.0,0.00024481]
[1644254941146,0.07905621,43823.0,43817.0,0.00024481]
[1644254941345,0.07905621,43823.0,43816.0,0.05024481]
[1644254941548,0.07905621,43823.0,43817.0,0.325231]
[1644254941745,0.07905621,43823.0,43817.0,0.37547581]
[1644254941945,0.00020457,43824.0,43817.0,0.32547581]
[1644254942546,0.52634274,43830.0,43819.0,0.24579062]
[1644254942547,0.51850778,43830.0,43819.0,0.24579062]
[1644254942747,0.02070862,43833.0,43827.0,0.05]
[1644254942748,0.15641751,43832.0,43827.0,0.05]
[1644254943147,0.02070862,43833.0,43827.0,0.05024481]
[1644254943350,0.02070862,43833.0,43831.0,0.05]
[1644254943589,0.02022693,43833.0,43831.0,0.0958]
[1644254943988,0.02022693,43833.0,43831.0,0.1458]
[1644254944492,0.02022693,43833.0,43832.0,0.325231]
[1644254944690,0.02022693,43833.0,43832.0,0.371031]
[1644254944889,0.02022693,43833.0,43832.0,0.57510283]
[1644254945491,0.00067999,43835.0,43832.0,0.57510283]
[1644254945692,0.00067999,43835.0,43834.0,0.05]
[1644254945892,0.85785711,43846.0,43834.0,0.421031]
[1644254945893,0.33054396,43846.0,43834.0,0.421031]
[1644254946092,0.38393827,43844.0,43839.0,0.23750761]
[1644254946294,0.48393827,43844.0,43839.0,0.23750761]
[1644254946893,0.38393827,43844.0,43837.0,0.1458]
[1644254947343,0.06648183,43839.0,43837.0,0.0958]
[1644254947942,0.324979,43839.0,43837.0,0.0958]
[1644254948142,0.48139651,43839.0,43837.0,0.0958]
[1644254948341,0.48139651,43839.0,43837.0,0.30302826]
[1644254948342,0.1,43839.0,43837.0,0.30302826]